bitfinex-derivatives/quotes_SOLF0:USTF0_20241218
["timestamp","ask_amount","ask_price","bid_price","bid_amount"]
[1734550023364,4.4133,216.42,216.25,21.99375538]
[1734550023571,2.2244,216.42,216.3,3.72]
[1734550024260,2.2244,216.42,216.25,21.99375538]
[1734550024261,19.86835538,216.4,216.25,2.1254]
[1734550024466,19.86835538,216.36,216.23,3.72]
[1734550024768,2.3128,216.29,216.23,6.0333]
[1734550024962,4.44889734,216.35,216.23,6.0333]
[1734550024963,3.72,216.35,216.23,6.0333]
[1734550025157,2.90281667,216.34,216.23,3.72]
[1734550025358,2.1738,216.34,216.23,3.72]
[1734550025771,2.3123,216.33,216.26,2.313]
[1734550025963,2.3123,216.33,216.23,3.72]
[1734550026170,2.1738,216.34,216.23,3.72]
[1734550026363,19.86835538,216.32,216.04,19.86835538]
[1734550026568,19.86835538,216.28,216.11,26.10835538]
[1734550026772,2.3138,216.19,216.11,8.5545]
[1734550026972,4.3354,216.27,216.11,9.96]
[1734550027265,0.72910462,216.26,216.11,9.96]
[1734550027469,19.86835538,216.24,216.06,3.72]
[1734550027671,0.72910462,216.23,216.06,3.72]
[1734550027865,2.91140462,216.23,216.06,3.72]
[1734550028070,2.3138,216.2,216.13,2.3144]
[1734550028263,2.1823,216.23,216.08,19.86835538]
[1734550028667,19.86835538,216.32,216.12,19.86835538]
[1734550028967,0.72914878,216.31,216.13,7.9305]
[1734550029174,2.3128,216.28,216.18,2.3138]
[1734550029372,2.3128,216.28,216.13,7.9305]
[1734550029568,19.86835538,216.32,216.13,7.9305]
[1734550029768,2.3128,216.29,216.21,2.3135]
[1734550029972,19.86835538,216.32,216.16,19.86835538]
[1734550030172,0.72918282,216.31,216.16,19.86835538]
[1734550030469,19.86835538,216.32,216.15,3.72]
[1734550030670,0.72923154,216.31,216.15,3.72]
[1734550030974,0.72923154,216.31,216.14,3.72]
[1734550031472,2.3135,216.22,216.14,3.72]
[1734550031674,19.86835538,216.28,216.14,3.72]
[1734550031870,2.3138,216.2,216.14,3.72]
[1734550032078,2.3138,216.2,216.13,4.2105]
[1734550032971,2.3134,216.23,216.13,4.2105]
[1734550033179,2.3134,216.23,216.16,2.3141]
[1734550034074,19.86835538,216.32,216.13,4.2105]
[1734550034274,4.44913317,216.31,216.13,4.2105]
[1734550034477,3.72,216.31,216.13,4.2105]
[1734550034672,2.3132,216.25,216.18,2.3138]
[1734550034971,2.3132,216.25,216.13,4.2105]
[1734550034972,13.87,216.43,216.2,19.86835538]
[1734550035173,2.2099,216.39,216.25,19.86835538]
[1734550035373,2.2099,216.39,216.26,3.72]
[1734550035571,5.66828087,216.35,216.26,3.72]
[1734550035875,5.66828087,216.35,216.24,3.72]
[1734550036070,5.66828087,216.35,216.21,3.72]
[1734550036270,5.66828087,216.35,216.21,23.58835538]
[1734550036471,3.72,216.37,216.21,23.58835538]
[1734550036668,2.2099,216.39,216.25,19.86835538]
[1734550036876,3.72,216.44,216.29,19.86835538]
[1734550037077,5.5826595,216.42,216.3,3.72]
[1734550037279,2.3115,216.4,216.35,2.312]
[1734550037572,5.5826595,216.42,216.3,5.8143]
[1734550037769,2.0348,216.45,216.33,19.86835538]
[1734550037970,2.0085,216.47,216.33,19.86835538]
[1734550038171,2.1082,216.53,216.33,19.86835538]
[1734550038470,0.72845186,216.52,216.33,19.86835538]
[1734550038674,5.4560711,216.5,216.33,19.86835538]
[1734550038873,2.3107,216.48,216.38,2.3117]
[1734550039075,2.3107,216.48,216.39,3.72]
[1734550039271,5.4560711,216.5,216.39,3.72]
[1734550039473,7.7665711,216.5,216.42,2.3113]
[1734550039678,5.4560711,216.5,216.39,3.72]
[1734550039978,5.4560711,216.5,216.42,2.3113]
[1734550040178,5.4560711,216.5,216.39,3.72]
[1734550040679,5.4560711,216.5,216.41,2.3113]
[1734550040874,5.4560711,216.5,216.39,3.72]
[1734550041776,3.72,216.49,216.37,5.50994101]
[1734550041974,0.72854987,216.48,216.32,3.72]
[1734550042375,2.3112,216.43,216.32,9.39773342]
[1734550042870,3.72,216.49,216.41,2.3114]
[1734550043471,3.72,216.49,216.32,29.2660888]
[1734550043472,2.3107,216.48,216.42,2.3113]
[1734550043677,3.72,216.49,216.42,2.3113]
[1734550043874,3.72,216.49,216.32,9.39773342]
[1734550044074,2.3115,216.41,216.32,9.39773342]
[1734550044277,3.72,216.49,216.31,2.22]
[1734550044472,19.86835538,216.45,216.31,2.22]
[1734550044678,0.72860035,216.44,216.31,2.22]
[1734550044876,23.58835538,216.49,216.31,2.22]
[1734550045075,0.72867828,216.48,216.31,2.22]
[1734550045376,19.86835538,216.45,216.27,5.7574]
[1734550045569,0.72867828,216.44,216.27,5.7574]
[1734550045970,19.86835538,216.4,216.21,19.86835538]
[1734550046172,3.72,216.39,216.22,3.72]
[1734550046481,19.86835538,216.36,216.24,2.3132]
[1734550046781,19.86835538,216.36,216.2,2.106]
[1734550047279,19.86835538,216.36,216.2,7.53889818]
[1734550047474,2.3124,216.32,216.27,2.3129]
[1734550047678,5.8894,216.39,216.21,19.86835538]
[1734550047878,0.72809367,216.38,216.21,19.86835538]
[1734550048082,5.8894,216.39,216.25,19.86835538]
[1734550048281,5.50894876,216.37,216.25,23.58835538]
[1734550049379,7.82084876,216.37,216.25,23.58835538]
[1734550049777,6.0317,216.39,216.32,2.3123]
[1734550050078,4.2977,216.43,216.25,23.58835538]
[1734550050274,2.3118,216.38,216.3,2.3126]
[1734550050474,8.0177,216.43,216.25,23.58835538]
[1734550050873,2.3118,216.38,216.33,2.3123]
[1734550051073,5.69123155,216.39,216.25,23.58835538]
[1734550051477,2.3116,216.4,216.25,23.58835538]
[1734550052076,2.3116,216.4,216.34,2.3121]
[1734550052278,7.91906317,216.4,216.34,2.3121]
[1734550052477,2.3114,216.42,216.29,19.86835538]
[1734550052783,2.0535,216.47,216.3,6.4064]
[1734550052979,19.86835538,216.5,216.33,19.86835538]
[1734550053179,4.0529,216.54,216.34,3.72]
[1734550053180,3.72,216.53,216.34,3.72]
[1734550053481,5.65242946,216.5,216.34,3.72]
[1734550054386,7.96302946,216.5,216.44,2.311]
[1734550054583,2.3102,216.53,216.47,2.3108]
[1734550054986,7.8037,216.54,216.47,2.3108]
[1734550055587,5.7735,216.54,216.47,2.3108]
[1734550056082,8.0836,216.54,216.48,2.3106]
[1734550056481,5.7735,216.54,216.48,2.3106]
[1734550056679,2.3101,216.53,216.48,2.3106]
[1734550056883,7.75102965,216.53,216.48,2.3106]
[1734550057678,5.7735,216.54,216.42,6.2838]
[1734550058079,2.0535,216.54,216.42,6.2838]
[1734550058282,2.3098,216.57,216.42,6.2838]
[1734550058484,3.7,216.59,216.42,6.2838]
[1734550058885,2.31,216.55,216.49,2.3105]
[1734550059085,5.41855211,216.57,216.49,2.3105]
[1734550060085,2.3101,216.54,216.49,2.3105]
[1734550060385,2.1636,216.6,216.42,6.2838]
[1734550060590,5.49510413,216.58,216.42,6.2838]
[1734550060889,25.36345951,216.58,216.46,2.3108]
[1734550061084,0.72821002,216.57,216.42,6.2838]
[1734550061384,0.72821002,216.57,216.46,2.3109]
[1734550061581,0.72821002,216.57,216.42,6.2838]
[1734550062189,0.72821002,216.57,216.43,5.64739251]
[1734550062685,25.36345951,216.58,216.43,5.64739251]
[1734550063289,0.72824132,216.57,216.43,5.64739251]
[1734550063889,19.86835538,216.54,216.42,6.2838]
[1734550064091,3.66,216.53,216.42,6.2838]
[1734550064389,3.66,216.53,216.37,3.66]
[1734550064390,0.72842896,216.52,216.37,3.66]
[1734550064585,19.86835538,216.46,216.35,2.1632]
[1734550064782,19.86835538,216.46,216.29,19.86835538]
[1734550064783,2.312,216.36,216.3,2.3126]
[1734550064988,2.312,216.36,216.25,19.86835538]
[1734550065494,2.3121,216.35,216.25,3.66]
[1734550065783,3.66,216.41,216.25,3.66]
[1734550066389,2.3119,216.37,216.31,2.3125]
[1734550067090,3.66,216.41,216.31,2.3125]
[1734550067387,2.312,216.36,216.31,2.3125]
[1734550067887,2.312,216.36,216.24,2.2257]
[1734550067888,19.86835538,216.38,216.27,2.3129]
[1734550068295,19.86835538,216.38,216.24,2.2257]
[1734550068595,19.86835538,216.3,216.15,54.40295046]
[1734550068890,3.66,216.29,216.14,3.66]
[1734550069087,5.8861,216.29,216.14,3.66]
[1734550069488,2.3129,216.28,216.2,2.3136]
[1734550069685,5.8861,216.29,216.17,5.5977251]
[1734550069886,3.66,216.29,216.17,5.5977251]
[1734550070094,3.66,216.32,216.17,5.5977251]
[1734550070391,2.3125,216.31,216.21,2.3135]
[1734550070587,2.3125,216.31,216.17,5.5977251]
[1734550070890,3.66,216.32,216.25,2.3131]
[1734550070891,5.9724,216.32,216.25,2.3131]
[1734550071086,5.9724,216.32,216.17,5.5977251]
[1734550071690,3.66,216.32,216.27,2.3129]
[1734550071884,3.66,216.32,216.17,5.5977251]
[1734550072287,25.33951549,216.34,216.17,5.5977251]
[1734550072486,3.66,216.37,216.19,19.86835538]
[1734550072688,5.56622022,216.35,216.19,19.86835538]
[1734550072983,5.56622022,216.35,216.2,2.166]
[1734550073183,5.56622022,216.35,216.21,3.66]
[1734550073392,5.56622022,216.35,216.21,7.8529]
[1734550073594,2.3122,216.34,216.27,2.3128]
[1734550073790,2.3122,216.34,216.21,7.8529]
[1734550074293,5.56622022,216.35,216.21,7.8529]
[1734550074694,5.56622022,216.35,216.27,2.3129]
[1734550075592,5.56622022,216.35,216.25,2.313]
[1734550076394,2.3126,216.3,216.25,2.313]
[1734550077893,19.86835538,216.34,216.21,4.1929]
[1734550078896,2.3125,216.31,216.25,2.3131]
[1734550080195,2.3125,216.31,216.26,2.313]
[1734550080397,2.3125,216.31,216.21,4.1929]
[1734550080398,19.86835538,216.34,216.21,4.1929]
[1734550080588,19.86835538,216.34,216.21,2.044]
[1734550080793,21.95475538,216.34,216.21,2.044]
[1734550081188,2.313,216.26,216.21,4.3575]
[1734550081589,21.95475538,216.34,216.21,2.044]
[1734550081788,0.72908281,216.33,216.21,2.044]
[1734550081996,19.86835538,216.3,216.07,24.49845538]
[1734550082190,2.3139,216.19,216.13,2.3144]
[1734550082393,19.86835538,216.26,216.13,2.3144]
[1734550082692,2.314,216.17,216.12,2.3145]
[1734550083095,23.52835538,216.22,216.12,2.3145]
[1734550083290,2.3143,216.15,216.1,2.3146]
[1734550083493,23.52835538,216.22,216.08,6.4718]
[1734550083900,2.3139,216.18,216.11,2.3146]
[1734550084200,23.52835538,216.22,216.08,6.4718]
[1734550084397,2.3138,216.19,216.15,2.3142]
[1734550084596,23.52835538,216.22,216.15,2.3142]
[1734550084791,2.1481,216.25,216.08,4.246]
[1734550084990,5.8834,216.29,216.12,19.86835538]
[1734550085193,5.68677667,216.26,216.12,23.52835538]
[1734550085595,2.3133,216.24,216.12,23.52835538]
[1734550085900,5.68677667,216.26,216.12,23.52835538]
[1734550086197,5.8834,216.29,216.12,23.52835538]
[1734550086593,2.3129,216.27,216.22,2.3134]
[1734550087490,2.313,216.26,216.2,2.3136]
[1734550088090,2.3132,216.24,216.19,2.3138]
[1734550088295,2.3132,216.24,216.12,23.52835538]
[1734550088798,2.3132,216.24,216.2,2.3137]
[1734550089391,5.5334104,216.27,216.2,2.3137]
[1734550089392,2.3131,216.25,216.2,2.3137]
[1734550089593,19.86835538,216.3,216.12,23.52835538]
[1734550089796,2.3129,216.28,216.12,23.52835538]
[1734550089995,23.52835538,216.3,216.12,23.52835538]
[1734550090398,5.9726,216.3,216.12,23.52835538]
[1734550090598,9.20973449,216.3,216.12,23.52835538]
[1734550090794,29.07808987,216.3,216.21,2.3135]
[1734550090998,29.07808987,216.3,216.12,23.52835538]
[1734550091497,2.0864,216.34,216.17,5.5692142]
[1734550091703,3.56,216.31,216.18,4.2849]
[1734550091907,9.17975255,216.31,216.18,4.2849]
[1734550092197,19.86835538,216.29,216.08,22.01545538]
[1734550092398,19.86835538,216.25,216.09,4.2849]
[1734550092598,3.56,216.24,216.09,4.2849]
[1734550092998,2.3137,216.2,216.15,2.3142]
[1734550093200,2.3137,216.2,216.09,4.2849]
[1734550093201,19.86835538,216.21,216.09,4.2849]
[1734550093698,2.3138,216.19,216.14,2.3143]
[1734550094296,2.3138,216.19,216.15,2.3142]
[1734550094499,2.3139,216.18,216.09,4.2849]
[1734550094703,19.86835538,216.21,216.09,4.2849]
[1734550096099,3.56,216.2,216.09,4.2849]
[1734550096295,19.86835538,216.17,216.08,2.1471]
[1734550096496,19.86835538,216.17,216.01,2.2235]
[1734550096695,2.3145,216.12,216.07,2.315]
[1734550096903,3.56,216.15,216.03,5.56875596]
[1734550097306,5.8742,216.15,216.1,2.3147]
[1734550097503,3.56,216.15,216.03,5.56875596]
[1734550097709,2.0739,216.19,216.03,5.56875596]
[1734550098007,5.6339,216.19,216.03,5.56875596]
[1734550098409,2.3139,216.18,216.12,2.3144]
[1734550098610,5.5550403,216.19,216.07,3.56]
[1734550099207,7.8688403,216.19,216.07,3.56]
[1734550099507,5.5550403,216.19,216.07,3.56]
[1734550099700,2.3137,216.2,216.15,2.3141]
[1734550100310,2.3139,216.18,216.13,2.3143]
[1734550100606,23.42835538,216.17,216.03,5.56875596]
[1734550100812,3.56,216.16,216.03,5.56875596]
[1734550101006,3.56,216.16,216.06,2.3151]
[1734550101611,3.56,216.16,216.03,5.56875596]
[1734550102211,2.3145,216.13,216.07,2.315]
[1734550103312,3.56,216.16,216.07,2.315]
[1734550103508,3.56,216.16,216.04,2.3153]
[1734550103711,19.86835538,216.13,216.04,2.3153]
[1734550103909,19.86835538,216.13,216.01,2.0426]
[1734550104103,2.0514,216.12,216.02,2.3155]
[1734550104304,2.0514,216.12,216.01,2.0426]
[1734550104507,2.3149,216.09,216.01,2.0426]
[1734550104708,2.0514,216.12,216.01,2.0426]
[1734550104911,3.56,216.14,216.01,2.0426]
[1734550105109,3.56,216.14,216.02,3.56]
[1734550105410,3.56,216.14,216.1,2.3146]
[1734550105613,5.8743,216.14,216.02,3.56]
[1734550105815,3.56,216.14,216.02,3.56]
[1734550106218,3.56,216.14,216.07,2.315]
[1734550106418,3.56,216.14,216.02,3.56]
[1734550106612,3.56,216.14,216.01,2.0426]
[1734550106816,3.56,216.14,216.05,2.3152]
[1734550107011,3.56,216.14,216.01,2.0426]
[1734550107319,2.3152,216.06,216.01,4.3583]
[1734550107722,19.86835538,216.11,215.98,2.0813]
[1734550108013,2.3154,216.04,215.99,2.3158]
[1734550108321,3.56,216.08,215.96,54.46200052]
[1734550108522,5.875,216.08,216.03,2.3154]
[1734550109421,3.56,216.08,216.04,2.3153]
[1734550109613,3.56,216.08,215.96,60.13456167]
[1734550110015,3.56,216.08,216.04,2.3153]
[1734550110219,19.86835538,216.11,216.04,2.3153]
[1734550110825,2.315,216.08,216.03,2.3155]
[1734550112219,19.86835538,216.11,215.96,60.13456167]
[1734550112721,19.86835538,216.11,215.96,5.67256115]
[1734550112919,3.56,216.1,215.96,5.67256115]
[1734550113224,19.86835538,216.11,215.96,5.67256115]
[1734550113422,3.56,216.12,215.96,5.67256115]
[1734550114220,3.56,216.12,216.02,2.3155]
[1734550114221,2.315,216.08,216.02,2.3155]
[1734550114625,2.315,216.08,215.96,5.67256115]
[1734550115329,2.3151,216.07,215.96,5.67256115]
[1734550116024,2.3151,216.07,216.02,2.3155]
[1734550116329,2.3151,216.07,215.96,5.67256115]
[1734550116924,19.86835538,216.11,215.96,5.67256115]
[1734550117329,2.3152,216.07,216.02,2.3156]
[1734550119034,23.42835538,216.11,215.96,5.67256115]
[1734550119534,19.86835538,216.03,215.89,2.179]
[1734550119736,19.86835538,215.99,215.89,2.179]
[1734550119922,3.56,216.0,215.89,2.179]
[1734550120123,14.78564113,215.96,215.91,2.3168]
[1734550120328,12.46944113,215.96,215.85,3.56]
[1734550120532,12.46944113,215.96,215.9,5.52660168]
[1734550120727,12.46944113,215.99,215.9,5.52660168]
[1734550121132,3.56,216.0,215.9,5.52660168]
[1734550121530,2.3161,215.97,215.9,5.52660168]
[1734550122234,19.95307607,215.98,215.85,3.56]
[1734550122432,19.95307607,215.98,215.84,4.2424]
[1734550122938,2.3166,215.93,215.87,2.3172]
[1734550123127,19.95307607,215.98,215.84,4.2424]
[1734550123331,19.95307607,215.94,215.84,4.2424]
[1734550123732,19.95307607,215.94,215.84,9.68572566]
[1734550124125,19.95307607,215.94,215.84,4.2424]
[1734550124331,4.2172,215.99,215.75,3.56]
[1734550124332,19.95307607,215.9,215.75,3.56]
[1734550124533,2.3172,215.88,215.82,2.3177]
[1734550124732,19.95307607,215.9,215.76,4.3946]
[1734550124934,19.95307607,215.9,215.79,5.6969952]
[1734550125235,2.3168,215.91,215.79,5.6969952]
[1734550125436,19.95307607,215.94,215.79,5.6969952]
[1734550125736,19.95307607,215.94,215.87,2.3172]
[1734550126336,19.95307607,215.94,215.81,3.56]
[1734550128335,19.95307607,215.94,215.83,2.3175]
[1734550129330,2.3169,215.9,215.84,2.3174]
[1734550129935,2.3171,215.88,215.82,2.3176]
[1734550132139,2.3171,215.88,215.83,2.3176]
[1734550132741,2.3173,215.87,215.82,2.3177]
[1734550134040,5.8771,215.89,215.83,2.3176]
[1734550134642,19.95307607,215.9,215.86,2.3172]
[1734550134845,2.3169,215.91,215.86,2.3172]
[1734550136240,2.3169,215.91,215.87,2.3172]
[1734550136641,19.95307607,215.94,215.8,3.56]
[1734550136847,19.95307607,215.94,215.89,2.3169]
[1734550138048,19.95307607,215.94,215.78,5.52531254]
[1734550138342,2.317,215.89,215.78,5.52531254]
[1734550138841,19.95307607,215.9,215.78,5.52531254]
[1734550139043,23.51307607,215.9,215.76,4.3946]
[1734550139242,2.0252,215.89,215.76,4.3946]
[1734550139440,2.3178,215.82,215.77,2.3182]
[1734550140543,3.56,215.83,215.68,54.53060696]
[1734550140743,19.95307607,215.82,215.68,54.53060696]
[1734550140949,19.95307607,215.78,215.66,6.4101]
[1734550141351,2.3184,215.76,215.7,2.3189]
[1734550141851,19.95307607,215.78,215.66,6.4101]
[1734550142149,22.27137607,215.78,215.72,2.3188]
[1734550142749,2.3183,215.77,215.69,5.68381899]
[1734550143050,19.95307607,215.78,215.69,5.68381899]
[1734550143248,22.27137607,215.78,215.72,2.3188]
[1734550144049,22.27137607,215.78,215.69,5.68381899]
[1734550144050,12.49050834,215.78,215.69,5.68381899]
[1734550144246,16.05050834,215.84,215.77,2.3183]
[1734550144446,3.56,215.84,215.7,16.05050834]
[1734550144749,3.56,215.84,215.78,2.3182]
[1734550145551,2.3176,215.83,215.78,2.3182]
[1734550146452,2.3176,215.83,215.7,16.05050834]
[1734550146649,7.9022,215.89,215.76,12.49050834]
[1734550146855,12.49050834,215.87,215.77,6.2384]
[1734550147046,12.49050834,215.84,215.77,2.1636]
[1734550147247,2.3178,215.82,215.77,2.1636]
[1734550147451,12.49050834,215.84,215.77,2.1636]
[1734550147851,12.49050834,215.87,215.77,2.1636]
[1734550148958,2.3175,215.84,215.77,2.1636]
[1734550149255,12.49050834,215.87,215.77,2.1636]
[1734550149457,5.5852,215.89,215.77,2.1636]
[1734550149458,12.49050834,215.88,215.77,2.1636]
[1734550149854,12.49050834,215.88,215.82,2.3177]
[1734550149855,2.3172,215.87,215.82,2.3177]
[1734550150457,2.3173,215.86,215.81,2.3178]
[1734550151559,2.3172,215.87,215.82,2.3177]
[1734550154257,12.49050834,215.93,215.79,12.49050834]
[1734550154463,5.6226,215.95,215.82,12.49050834]
[1734550154663,3.56,215.95,215.82,16.05050834]
[1734550154863,3.56,215.95,215.83,4.2786]
[1734550155365,2.3165,215.94,215.83,4.2786]
[1734550155760,3.56,215.95,215.83,4.2786]
[1734550156359,12.49050834,215.93,215.8,5.62861217]
[1734550156962,2.3169,215.9,215.8,5.62861217]
[1734550157258,16.05050834,215.96,215.8,18.11912051]
[1734550157658,2.3168,215.92,215.87,2.3171]
[1734550158061,2.3168,215.91,215.87,2.3171]
[1734550158262,16.05050834,215.96,215.87,2.3171]
[1734550158470,16.05050834,215.96,215.83,12.49050834]
[1734550158765,2.3166,215.93,215.83,12.49050834]
[1734550159068,16.05050834,215.96,215.8,18.11912051]
[1734550159267,2.3168,215.91,215.86,2.3172]
[1734550159463,16.05050834,215.96,215.8,18.11912051]
[1734550159765,2.3168,215.92,215.87,2.3171]
[1734550159958,12.49050834,215.96,215.8,18.11912051]
[1734550160357,2.3165,215.94,215.8,18.11912051]
[1734550160661,12.49050834,215.96,215.8,18.11912051]
[1734550161467,12.49050834,215.93,215.8,5.62861217]
[1734550161665,12.49050834,215.9,215.8,5.62861217]
[1734550161863,16.05050834,215.9,215.8,5.62861217]
[1734550162263,12.49050834,215.96,215.83,12.49050834]
[1734550162466,2.3166,215.93,215.83,12.49050834]
[1734550162863,2.3165,215.94,215.83,12.49050834]
[1734550163466,2.3165,215.94,215.89,2.3169]
[1734550163666,2.3166,215.93,215.89,2.3169]
[1734550164172,2.3165,215.94,215.89,2.3169]
[1734550164370,3.56,215.97,215.89,2.3169]
[1734550164567,3.56,215.97,215.83,12.49050834]
[1734550164774,2.3165,215.94,215.9,2.3168]
[1734550166075,7.56433427,215.98,215.92,2.3166]
[1734550166271,11.12433427,215.98,215.83,16.05050834]
[1734550166779,11.12433427,215.98,215.91,2.3167]
[1734550167175,2.3165,215.94,215.91,2.3167]
[1734550167575,11.12433427,215.98,215.91,2.3167]
[1734550168974,4.3602,215.98,215.94,2.3164]
[1734550169170,2.316,215.98,215.94,2.3164]
[1734550169677,2.3161,215.97,215.94,2.3164]
[1734550170071,18.14560834,216.02,215.94,2.3164]
[1734550170670,18.14560834,216.02,215.9,12.49050834]
[1734550170671,16.05050834,216.02,215.9,12.49050834]
[1734550170877,2.0973,216.06,215.96,12.49050834]
[1734550170878,4.4125,216.06,215.96,12.49050834]
[1734550171073,267.14039469,216.11,215.96,16.05050834]
[1734550171278,267.14039469,216.11,216.03,2.3154]
[1734550171477,6.25200583,216.1,216.03,2.3154]
[1734550171677,0.72797337,216.09,216.03,2.3154]
[1734550172076,12.49050834,216.08,215.96,3.56]
[1734550172377,12.49050834,216.02,215.9,12.49050834]
[1734550172772,3.56,216.04,215.9,12.49050834]
[1734550173172,3.56,216.04,215.9,16.05050834]
[1734550173476,2.3158,216.0,215.96,2.3162]
[1734550174379,3.56,216.04,215.93,5.4244817]
[1734550174380,2.3163,215.96,215.93,5.4244817]
[1734550174684,12.49050834,215.99,215.88,6.3615]
[1734550175073,3.56,216.01,215.89,5.43059724]
[1734550175677,3.56,216.01,215.91,2.3168]
[1734550175986,3.56,216.01,215.88,6.3615]
[1734550176280,2.316,215.98,215.93,2.3165]
[1734550176679,3.56,216.01,215.88,6.3615]
[1734550176983,2.3162,215.96,215.91,2.3167]
[1734550177281,3.56,216.01,215.93,2.3165]
[1734550177282,2.316,215.98,215.93,2.3165]
[1734550177484,3.56,216.01,215.93,2.3165]
[1734550178282,3.56,216.01,215.92,2.3167]
[1734550178684,2.3162,215.97,215.92,2.3167]
[1734550179280,2.3162,215.97,215.93,2.3165]
[1734550179678,3.56,216.01,215.89,5.64172763]
[1734550179882,3.56,216.01,215.91,2.3168]
[1734550180284,2.3164,215.95,215.9,2.3168]
[1734550180780,12.49050834,215.99,215.9,2.3168]
[1734550181485,12.49050834,215.96,215.81,12.49050834]
[1734550181689,12.49050834,215.93,215.82,5.66564268]
[1734550181880,16.05050834,215.93,215.82,5.66564268]
[1734550182281,12.49050834,215.96,215.84,12.49050834]
[1734550182587,3.56,215.98,215.84,12.49050834]
[1734550182788,2.3168,215.92,215.87,2.3171]
[1734550182990,3.56,215.98,215.87,2.3171]
[1734550183381,2.3167,215.92,215.87,2.3171]
[1734550183783,2.1166,216.02,215.87,12.49050834]
[1734550183986,2.1166,216.02,215.9,12.49050834]
[1734550184181,2.1166,216.02,215.9,16.05050834]
[1734550184489,4.2993,216.03,215.9,16.05050834]
[1734550184983,2.1313,216.03,215.9,16.05050834]
[1734550185392,12.49050834,216.01,215.9,3.56]
[1734550185687,12.49050834,215.98,215.9,3.56]
[1734550186789,2.3165,215.94,215.9,5.8768]
[1734550186989,2.3165,215.94,215.9,2.3168]
[1734550187190,2.3166,215.93,215.89,4.5431]
[1734550187385,12.49050834,215.98,215.85,3.56]
[1734550187585,12.49050834,215.98,215.84,14.49960834]
[1734550187781,2.3167,215.92,215.87,2.3172]
[1734550188186,12.49050834,215.98,215.84,14.49960834]
[1734550188387,2.3166,215.93,215.88,2.3171]
[1734550188581,12.49050834,215.98,215.84,14.49960834]
[1734550188990,3.56,215.99,215.84,14.49960834]
[1734550189291,3.56,215.99,215.87,12.49050834]
[1734550189885,2.3163,215.96,215.87,12.49050834]
[1734550190087,3.56,215.99,215.87,12.49050834]
[1734550190287,2.3162,215.97,215.9,2.3168]
[1734550190495,2.3162,215.97,215.87,12.49050834]
[1734550190884,2.3162,215.97,215.92,2.3166]
[1734550192285,2.3162,215.97,215.93,2.3165]
[1734550193692,2.3162,215.97,215.89,3.56]
[1734550193887,2.3163,215.96,215.92,2.3166]
[1734550195493,3.56,215.99,215.89,3.56]
[1734550195798,2.1313,216.03,215.9,12.49050834]
[1734550196193,2.1313,216.03,215.96,2.3162]
[1734550196397,12.49050834,216.02,215.89,3.56]
[1734550197292,2.3161,215.97,215.93,2.3165]
[1734550197995,2.316,215.98,215.94,2.3164]
[1734550198392,2.1313,216.03,215.89,3.56]
[1734550198596,2.1313,216.03,215.94,12.49050834]
[1734550198896,12.49050834,216.06,215.94,12.49050834]
[1734550199094,2.3156,216.02,215.97,2.3161]
[1734550199298,2.3156,216.02,215.94,12.49050834]
[1734550199702,2.3155,216.04,215.99,2.3158]
[1734550199899,2.3155,216.04,215.94,12.49050834]
[1734550200399,2.3155,216.04,215.95,2.0126]
[1734550200600,2.3156,216.02,215.95,2.0126]
[1734550200797,7.64769875,216.08,215.95,2.0126]
[1734550201199,2.3157,216.02,215.95,2.0126]
[1734550201394,7.64769875,216.08,215.95,2.0126]
[1734550201598,7.64769875,216.08,215.96,5.53147868]
[1734550201797,2.3155,216.04,215.96,5.53147868]
[1734550201994,7.64769875,216.08,215.96,5.53147868]
[1734550202193,2.316,215.99,215.95,2.0126]
[1734550202394,12.49050834,216.06,215.89,16.05050834]
[1734550202600,12.49050834,216.06,215.93,5.49811633]